Cogmind - Beta 11 @@@ ROGUE MODE // 2022.04.09 @ 22:58:13 Player: Red Box Result: Destroyed by as-29359 with Assembled Blade Performance ------------- Evolutions (0) 0 Regions Visited (2) 400 Robots Destroyed (18) 90 Value Destroyed (356) 356 Prototype IDs (4) 80 Alien Tech Used (0) 0 Bonus (-23) -23 TOTAL SCORE: 903 Bonus ------- Friendly Fire -23 Cogmind --------- Core Integrity 0/250 Matter 199/300 Energy 70/250 System Corruption 0% Temperature Cool (0) Movement Rolling (115) Ox1 Location -10/Mines Parts ------- > --- POWER (1) -------- Ion Engine > --- PROPULSION (2) --- Compact Wheel Compact Wheel > --- UTILITY (2) ------ Large Storage Unit Medium Armor Plating > --- WEAPON (2) ------- Beam Cannon > --- INVENTORY (15) --- Wheel Compact Wheel Compact Wheel Compact Wheel Compact Wheel Compact Wheel Improved Heat Sink Huge Storage Unit High-capacity Matter Pod (102) Medium Armor Plating Mining Laser Peak State ------------ > --- POWER ------------ Ion Engine > --- PROPULSION ------- Compact Wheel Compact Wheel > --- UTILITY ---------- Large Storage Unit Improved Terrain Scanner > --- WEAPON ----------- Beam Cannon Rocket Launcher > --- INVENTORY -------- Ion Engine Wheel Compact Wheel Compact Wheel Compact Wheel Compact Wheel Compact Wheel Improved Heat Sink Improved Heat Sink Huge Storage Unit High-capacity Matter Pod Medium Armor Plating Medium Armor Plating Assault Rifle Mining Laser [Rating: 12] Favorites ----------- Power Ion Engine Engine Ion Engine Propulsion Aluminum Leg Leg Aluminum Leg Wheel Compact Wheel Utility Improved Terrain Scanner Device Improved Terrain Scanner Storage Large Storage Unit Protection Medium Armor Plating Weapon Assault Rifle Energy Cannon Beam Cannon Ballistic Gun Assault Rifle Launcher Rocket Launcher Build | -11 -10 -10 ------- Run | Scr Mat Min Slots Evolved . | . . . Power . | . . . Propulsion . | . . . Utility . | . . . Weapon . | . . . Parts Attached 25 | 8 10 7 Power 4 | 2 1 1 Engine 4 | 2 1 1 Core . | . . . Reactor . | . . . Propulsion 6 | 2 4 . Treads . | . . . Leg 3 | 2 1 . Wheel 3 | . 3 . Hover . | . . . Flight . | . . . Utility 5 | 2 2 1 Device 1 | 1 . . Storage 3 | 1 2 . Processor . | . . . Hackware . | . . . Protection 1 | . . 1 Artifact . | . . . Weapon 10 | 2 3 5 Energy Gun . | . . . Energy Cannon 3 | . 1 2 Ballistic Gun 4 | 2 1 1 Ballistic Cannon . | . . . Launcher 3 | . 1 2 Special Weapon . | . . . Impact Weapon . | . . . Slashing Weapon . | . . . Piercing Weapon . | . . . Special Melee Weapon . | . . . Unidentified Prototypes . | . . . Parts Lost 4 | . . 4 Power 1 | . . 1 Propulsion . | . . . Utility 1 | . . 1 Weapon 2 | . . 2 Highest Loss Streak 4 | . . 4 To Critical Strikes . | . . . Average Slot Usage (%) 99 | . 99 99 Engine 13 | . 14 13 Leg 24 | . 26 . Wheel 3 | . 1 28 Device 13 | . 14 13 Storage 14 | . 14 14 Energy Cannon 4 | . 3 14 Ballistic Gun 23 | . 24 13 Naked Turns . | . . . Heaviest Build 32 | 14 31 32 Greatest Support 32 | 20 32 32 Greatest Overweight (x) 3 | . 3 . Average Overweight (x) . | . . . Largest Inventory Capacity 15 | 8 15 15 Average Capacity 14 | 7 14 15 Most Carried 15 | 8 15 15 Average Carried 13 | 6 14 14 Final Capacity 15 | 8 15 15 Final Carried 15 | 8 15 11 Class Distribution -------------------- 100% | Mutant Dominant Class ---------------- Mutant | -10/Materials Mutant | -10/Mines Resources | -11 -10 -10 ----------- Run | Scr Mat Min Matter Collected 767 | 342 375 50 Remotely . | . . . Salvage Created 591 | 113 413 65 Parts 42 | 11 29 2 Haulers Intercepted 1 | . 1 . Recyclers Shooed . | . . . Parts Field Recycled . | . . . Retrieved Matter . | . . . Parts Self-Destructed . | . . . Prevented . | . . . Kills | -11 -10 -10 ------- Run | Scr Mat Min Combat Hostiles Destroyed 11 | . 7 4 Guns 6 | . 5 1 Cannons 1 | . . 1 AOE 4 | . 2 2 Classes Destroyed 7 | 2 4 1 Tunneler 3 | 3 . . Hauler 1 | . 1 . Recycler 2 | 1 1 . Watcher 3 | . 3 . Swarmer 3 | . 3 . Grunt 6 | . 4 2 Assembled 2 | . . 2 Best Kill Streak 4 | 2 4 2 Combat Bots Only 3 | . 3 2 Max Kills in Single Turn 3 | 1 3 1 Gunslinging . | . . . Exploded 2 | . 2 1 Melee . | . . . Uniques/NPCs Destroyed . | . . . Combat | -11 -10 -10 -------- Run | Scr Mat Min Damage Taken 1008 | . 307 701 Core 273 | . 43 230 Absorbed by Shields . | . . . Core Remaining (%) 100 | 100 . . Volleys Fired 77 | 16 47 14 Largest 2 | 2 2 2 Hottest 93 | 40 80 93 Shots Fired 152 | 30 94 28 Gun 128 | 30 87 11 Cannon 18 | . 5 13 Launcher 6 | . 2 4 Special . | . . . Kinetic 128 | 30 87 11 Thermal 18 | . 5 13 Explosive 6 | . 2 4 Electromagnetic . | . . . Robot Hit Streak 7 | 4 6 7 Robot Miss Streak 12 | 10 12 4 Penetration Max . | . . . Secondary Targets . | . . . Shots Hit Robots 71 | 11 47 13 Core Hits 39 | 6 22 11 Critical Kills . | . . . Critical Parts Destroyed . | . . . Critical Strikes . | . . . Melee Attacks . | . . . Impact . | . . . Slashing . | . . . Piercing . | . . . Sneak Attacks . | . . . Combat Hostiles . | . . . Follow-up Attacks . | . . . Damage Inflicted 1320 | 128 699 493 Guns 639 | 128 453 58 Cannons 141 | . 53 88 Explosions 540 | . 193 347 Melee . | . . . Ramming . | . . . Kinetic 639 | 128 453 58 Thermal 141 | . 53 88 Explosive 540 | . 193 347 Electromagnetic . | . . . Impact . | . . . Slashing . | . . . Piercing . | . . . Highest Corruption . | . . . Average Corruption . | . . . Corruption Purged . | . . . Corruption Blocked . | . . . Overload Shots . | . . . Overflow Damage 25 | . 23 2 Projectiles . | . . . Explosions 25 | . 23 2 Melee . | . . . Knockbacks . | . . . Impact . | . . . Kinetic . | . . . Secondary . | . . . Self-Inflicted Damage 120 | . 48 72 Shots 4 | . 1 3 Rammed . | . . . Targets Rammed . | . . . Kicked . | . . . Crushed . | . . . Highest Temperature 154 | . 36 154 Average Temperature 47 | . 13 69 Received Heat Transfer 177 | . 114 63 Siege Activations . | . . . Robots Corrupted . | . . . Combat Hostiles . | . . . Parts Fried . | . . . Impact Corruptions . | . . . Robots Melted . | . . . Combat Hostiles . | . . . Parts Melted . | . . . Heat Transferred 296 | . 111 185 Parts Sabotaged . | . . . Parts Stolen . | . . . Parts Stripped . | . . . Power Chain Reactions . | . . . Missiles Intercepted . | . . . Alert | -11 -10 -10 ------- Run | Scr Mat Min Peak Influence 347 | 20 347 113 Initial 13 | . 13 . Average 78 | 9 85 87 Maximum Alert Level 1 | . 1 . Low Security (%) 90 | 100 89 100 Level 1 9 | . 10 . Level 2 . | . . . Level 3 . | . . . Level 4 . | . . . Level 5 . | . . . High Security . | . . . Max Security . | . . . Squads Dispatched . | . . . Investigation . | . . . Extermination . | . . . Reinforcement . | . . . Assault . | . . . Garrison . | . . . Intercept . | . . . Searches Triggered . | . . . Construction Impeded . | . . . Haulers Reinforced . | . . . Active Scanning Responses . | . . . Cargo Convoy Interrupts . | . . . Stealth | -11 -10 -10 --------- Run | Scr Mat Min Distress Signals . | . . . Communications Jammed . | . . . Distress Signals . | . . . Times Spotted 38 | . 17 21 Peak Tracking Total 20 | . 3 20 Tactical Retreats 5 | . 3 2 Traps | -11 -10 -10 ------- Run | Scr Mat Min Traps Triggered . | . . . Indirectly . | . . . Trap Hack Attempts . | . . . Triggered . | . . . Disarmed 6 | . 6 . Reprogrammed . | . . . Reused . | . . . Traps Extracted . | . . . Installed 1 | . . 1 Triggered . | . . . Most Traps Carried 1 | . . 1 Machines | -11 -10 -10 ---------- Run | Scr Mat Min Machines Disabled . | . . . Max in Single Turn . | . . . Machines Sabotaged . | . . . Garrisons Compromised . | . . . Overloaded Fab Kills . | . . . Hacking | -11 -10 -10 --------- Run | Scr Mat Min Machines Accessed 10 | . 10 . Terminals 8 | . 8 . Fabricators . | . . . Repair Stations . | . . . Recycling Units 2 | . 2 . Scanalyzers . | . . . Garrison Access . | . . . Total Hacks 33 | . 33 . Successful 19 | . 19 . Failed 14 | . 14 . Catastrophic 1 | . 1 . Database Lockouts . | . . . Manual 17 | . 17 . Terminals 27 | . 27 . Fabricators . | . . . Repair Stations . | . . . Recycling Units 6 | . 6 . Scanalyzers . | . . . Garrison Access . | . . . Terminal Hacks 8 | . 8 . Robot Analysis 2 | . 2 . Prototype ID Bank 2 | . 2 . Unreport Threat 1 | . 1 . Locate Traps 1 | . 1 . Disarm Traps 1 | . 1 . Hauler Manifests 1 | . 1 . Fabricator Hacks . | . . . Repair Station Hacks . | . . . Recycling Unit Hacks 2 | . 2 . Retrieve Components 2 | . 2 . Scanalyzer . | . . . Garrison Access Hacks . | . . . Unauthorized Hacks 9 | . 9 . Terminals 8 | . 8 . Track 2 | . 2 . Assimilate 2 | . 2 . Botnet 3 | . 3 . Operators 1 | . 1 . Fabricators . | . . . Repair Stations . | . . . Recycling Units 1 | . 1 . Reject 1 | . 1 . Scanalyzers . | . . . Garrison Access . | . . . Data Cores Recovered . | . . . Used . | . . . Hacking Detections 9 | . 9 . Full Trace Events . | . . . Feedback Events . | . . . Feedback Blocked . | . . . Robot Schematics Acquired . | . . . Robots Built . | . . . Authchips . | . . . Time . | . . . Total Robot Build Rating . | . . . Part Schematics Acquired . | . . . Parts Built . | . . . Authchips . | . . . Time . | . . . Total Part Build Rating . | . . . Parts Repaired . | . . . Time . | . . . Parts Recycled . | . . . Recycled Matter . | . . . Retrieved Matter . | . . . Retrieved Components 8 | . 8 . Parts Scanalyzed . | . . . Part Schematics Acquired . | . . . Parts Damaged . | . . . Bothacking | -11 -10 -10 ------------ Run | Scr Mat Min Used RIF Installer . | . . . Robots Hacked . | . . . Non-combat . | . . . Combat . | . . . Robot Hacks Applied . | . . . Relay Couplers Released . | . . . Fabnet Peak Effective % . | . . . Robots Rewired . | . . . Allies Hacked . | . . . Hacks Repelled . | . . . Allies | -11 -10 -10 -------- Run | Scr Mat Min Total Allies 1 | . 1 . Largest Group 1 | . 1 1 Highest-Rated Group 10 | . 10 10 Highest-Rated Ally 10 | . 10 10 Total Orders 4 | . . 4 STAY 2 | . . 2 FOLLOW 2 | . . 2 Ally Attacks . | . . . Total Damage . | . . . Kills . | . . . Allies Corrupted . | . . . Allies Melted . | . . . Intel | -11 -10 -10 ------- Run | Scr Mat Min Robot Analysis Total 2 | . 2 . Derelict Logs Recovered . | . . . Drone Launches . | . . . Drone Recoveries . | . . . Exploration | -11 -10 -10 ------------- Run | Scr Mat Min Turns Passed 2514 | 231 2113 170 Spaces Moved 1177 | 136 927 114 Core 2 | 2 . . Treads . | . . . Legs 944 | 134 810 . Wheels 231 | . 117 114 Hover . | . . . Flight . | . . . Fastest Speed 50 | 50 100 100 Average Speed 163 | 118 177 100 Slowest Speed 190 | 120 190 100 Overloaded Moves . | . . . Propulsion Burnouts . | . . . Robots Hopped . | . . . Cave-ins Triggered . | . . . Exploration Rate (%) 45 | 6 99 30 Regions Visited 2 Branch Regions 1 Pre-discovered Areas . | . . . Known Exits Taken . | . . . Unknown Exits Taken 2 | 1 1 . Scrap Searched . | . . . Spaces Dug . | . . . Terrain Destroyed 50 | . 20 30 Melee . | . . . Projectile . | . . . AOE 50 | . 20 30 Terrain Rammed . | . . . Walls Destroyed . | . . . Machines Disabled . | . . . Actions | -11 -10 -10 --------- Run | Scr Mat Min Total 1632 | 176 1315 141 Wait 305 | 7 298 . Move 1175 | 135 926 114 Hop . | . . . Pick Up 29 | 9 18 2 Fast Attach 9 | 6 2 1 Attach 5 | 1 1 3 Detach . | . . . Swap 11 | 1 7 3 Drop 20 | 1 16 3 Fire 77 | 16 47 14 Melee . | . . . Ram . | . . . Kick . | . . . Crush . | . . . Escape Stasis . | . . . Rewire . | . . . Trap 1 | . . 1 Miscellaneous . | . . . Route ------- -11/Scrapyard -10/Materials (discovered 4 exits: [*Mat x3] / [*Min]) -10/Mines History --------- Turn | Location | Event 4 | -11/Scrapyard | Discovered new exit (range 16) 232 | -11/Scrapyard | Entered Materials 321 | -10/Materials | Build established: Mutant 770 | -10/Materials | Discovered new exit (range 5) 888 | -10/Materials | Discovered new exit (range 7) 1089 | -10/Materials | Discovered new exit (range 15) 1988 | -10/Materials | Discovered new exit (range 11) 2345 | -10/Materials | Entered Mines 2345 | -10/Mines | Accompanied by 1 ally 2351 | -10/Mines | Met a Derelict bent on vengeance 2398 | -10/Mines | Found a hidden stash of uninstalled traps 2444 | -10/Mines | Assembled infested the area 2449 | -10/Mines | Assisted by a Guerilla fighting off Assembled 2497 | -10/Mines | Core integrity fell below 50% 2513 | -10/Mines | Core integrity fell below 20% 2515 | -10/Mines | Destroyed by as-29359 with Assembled Blade Last Messages --------------- 02460_ HV Slug penetrates Wall. 02462_ K-01 Serf collects debris. 02462_ as-57027 suffers critical hit (Destroy). 02465_ K-01 Serf collects debris. 02471_ R-06 Scavenger collects Flexi-carbon Leg. 02473_ K-01 Serf collects debris. 02479_ as-47862 sneak attacks. 02479_ K-01 Serf system corrupted by crushing effect. 02479_ K-01 Serf knocked back. 02492_ as-47862 destroyed. 02496_ as-02907 destroyed. 02497_ Rocket Launcher destroyed. 02504_ as-29359 sneak attacks. 02504_ Technician 1a destroyed. 02504_ Imp. Terrain Scanner destroyed. 02506_ Ion Engine destroyed. 02510_ Beam Cannon severed. 02512_ Acquired Beam Cannon. 02514_ Assault Rifle destroyed. 02515_ The unstable cave ceiling collapses. Map ----- +----------------------------------------------------+ | ???????? ?????# ## ##????? | | ?????????? ????# = #### #????? | | ????????????# =% ???######### ##?# ##???? | | ?????????????# ! #?########## % #??# ##??? | | ??????????????# ## ##??# ##?? | | ?????????????????# ^ #???## #?? | | ?????????????????## ##### ##???# #? | | ??????????????????## #???# * #????# # | | ???????????????????## ##??## #????#### # | | ????????????????????## ####### ##??#???### ## | | ?????????????????????####?# ## #???????#?###? | | ?????????????????????????# ##a #?????????#??? | | ????????????????????###### ## #???#????????? | | ??????????????#?????# ### #??????#?????? | | ????????? ??????????# % #?# #????#???????? | | ????????????????????# #### ### #####????????? | | ????????????????????#????# #?#??????? | | ??????????????????????#### ####### #????????? | | ???????????????????????## ##?????# #??####??? | | ?????????????#?# ???#?##! ####?#????# #### ##?? | | ????????????#?????#???# %aa##?????????# ##? | | ??????????????????????##/ #???????##?# ### ## | | ??????????????????????###%a#??????????# ## # | | ????????????????????????# a#??????????# ## | | ??????????????????????#?#a #?????????## # # | | ?????????????????????#??#@ #??????????# # # | | ????????????????????????# #??????????### [ # | | ????????????????????????# #??????##????## | | ????????????????????????#$ #??????????#??# # | | ???????????????????????? ##????????????## ### | | ???????????????? ??????? ###?????????#????######?? | | ????????????? ?????????# ?????????????#??????????? | | ??????????????????????? ?????????????#??#???????? | | ???????????????????????##???#????????????????????? | | ???????????????????????????????????????#?????????? | | ?????????????????????????#???????????????????????? | | ?????????????????????????????????????????????????? | | ?????????????????????????????????????????????????? | | | | | | | | | | | | | | | | | | | | | | | | | +----------------------------------------------------+ Best States ------------- Heat Dissipation 25 Energy Generation 10 Energy Capacity 250 Matter Stores 300 Matter Capacity 300 Sight Range 16 Terrain Scan Range 16 Terrain Scan Density 10 Armor Coverage 225 Evasion (%) 55 Item Schematics ----------------- None Robot Schematics ------------------ None Fabricated ------------ Nothing Alien Tech Used ----------------- None Achievements -------------- None Challenges ------------ None Game ------ Seed CoolingRefineryMagmablaster Manual? 0 Play Time 00:16:51 Cumulative 265.8 hours Start 2022.04.09 @ 22:39:15 End 2022.04.09 @ 22:58:13 Sessions 1 Manual Loads 0 Difficulty Rogue Special Mode None Game No. 227 Rogue 227 Adventurer 0 Explorer 0 Win Type - Total 0 Types 0/0/0/0/0/0/0/0/0 Lore% 51 Gallery% 58 Achievement% 42 Wizard Run 0 Options --------- ASCII 0 Keyboard 0 Movement Mouse Keybinds 0 Fullscreen 1 Font 16/SmallcapsGlow Map View 75x55 Tactical HUD 1 Map Filters NONE Filters NONE Steam 1 RUN: a036e4c1-b980-4225-9859-472878b23aa0